bitfinex/quotes_ETHUSD_20240817
["timestamp","ask_amount","ask_price","bid_price","bid_amount"]
[1723865639511,4.3721662,2598.0,2597.4,7.69976]
[1723865640097,2.77197082,2597.9,2597.3,11.12245]
[1723865640290,2.77197082,2597.9,2597.3,7.27231]
[1723865640291,3.84945,2597.8,2597.3,7.27231]
[1723865640490,0.73214208,2597.7,2597.3,7.27231]
[1723865640686,4.58171208,2597.7,2597.3,7.27231]
[1723865641420,3.84971,2597.6,2597.3,7.27231]
[1723865641568,0.73214208,2597.7,2597.2,3.8503]
[1723865641900,3.84957,2597.7,2597.2,3.8503]
[1723865643212,7.69897,2597.8,2597.2,3.8503]
[1723865643416,2.9666,2597.9,2597.4,3.85]
[1723865643601,3.26326,2597.9,2597.4,3.85]
[1723865643810,3.26326,2597.9,2597.1,3.85041]
[1723865644007,6.11661,2597.4,2596.9,0.1272948]
[1723865644383,2.2666,2597.4,2596.9,0.1272948]
[1723865645596,0.7,2597.5,2597.0,3.85054]
[1723865645806,9.045836,2597.8,2597.2,6.16781]
[1723865646005,9.045866,2597.8,2597.2,6.16781]
[1723865646209,4.9808236,2597.7,2597.2,6.16781]
[1723865648416,1.1312436,2597.7,2597.3,3.85014]
[1723865648586,1.346826,2597.8,2597.3,3.85014]
[1723865648989,5.196256,2597.8,2597.3,3.85014]
[1723865650116,3.84956,2597.7,2597.2,2.3176]
[1723865650428,5.3657276,2597.7,2597.2,2.3176]
[1723865650784,0.7,2597.8,2597.3,3.85006]
[1723865651632,4.54948,2597.8,2597.3,3.85006]
[1723865652442,6.12316,2597.7,2597.1,3.85033]
[1723865652753,7.190411,2597.7,2597.1,3.85033]
[1723865652918,7.190411,2597.7,2597.2,3.85027]
[1723865654999,3.340851,2597.7,2597.3,3.85013]
[1723865655138,0.7,2597.8,2597.4,3.84989]
[1723865656368,0.7,2597.8,2597.3,10.01416]
[1723865656528,1.702796,2597.8,2597.3,3.85013]
[1723865657352,1.702796,2597.8,2597.3,3.85007]
[1723865658423,1.002796,2597.8,2597.3,3.85007]
[1723865658629,6.12276,2598.0,2597.5,3.84982]
[1723865658839,6.12276,2598.0,2597.3,7.70011]
[1723865658840,3.84927,2597.9,2597.3,7.70011]
[1723865659045,4.916448,2597.9,2597.3,3.85004]
[1723865659731,3.84943,2597.8,2597.3,3.85004]
[1723865660043,4.9533778,2597.8,2597.3,3.85004]
[1723865660243,1.1039478,2597.8,2597.3,7.70011]
[1723865660443,1.1039478,2597.8,2597.3,3.85004]
[1723865661172,1.1039478,2597.8,2597.3,7.7001]
[1723865661345,1.1039478,2597.8,2597.3,7.70011]
[1723865662269,1.1039478,2597.8,2597.4,3.84998]
[1723865662517,4.54906,2598.1,2597.6,2.3139]
[1723865662644,2.2736,2598.2,2597.7,3.84952]
[1723865662645,3.84884,2598.2,2597.7,3.84952]
[1723865662986,0.7,2598.4,2597.8,3.8494]
[1723865663157,0.7,2598.4,2598.0,6.16293]
[1723865664935,0.7,2598.4,2598.0,2.3139]
[1723865665463,6.12206,2598.5,2598.0,6.163]
[1723865665663,4.54817,2598.7,2598.0,6.16292]
[1723865665664,6.82177,2598.7,2598.0,6.16292]
[1723865665888,0.69557441,2598.6,2598.2,3.84873]
[1723865667373,4.54817,2598.7,2598.2,3.84873]
[1723865667572,8.39633,2598.7,2598.0,10.0119]
[1723865667734,0.839633,2598.6,2598.0,10.0119]
[1723865667935,0.839633,2598.6,2598.1,3.84891]
[1723865668131,4.54816,2598.7,2598.1,3.84891]
[1723865669373,8.39631,2598.7,2598.1,3.84891]
[1723865669736,2.4148,2598.6,2598.1,3.84891]
[1723865670187,2.4148,2598.6,2597.8,6.2916]
[1723865670439,2.4148,2598.6,2597.5,3.0]
[1723865670440,3.84901,2598.1,2597.6,3.84962]
[1723865670836,6.26348,2598.3,2597.6,3.84962]
[1723865671134,10.11224,2598.3,2597.7,3.84946]
[1723865671292,10.808588,2598.3,2597.7,3.84946]
[1723865671895,3.84883,2598.2,2597.7,3.84946]
[1723865673134,6.959828,2598.3,2597.8,3.84939]
[1723865673334,0.7,2598.4,2597.9,6.29138]
[1723865673838,0.7,2598.4,2598.0,3.84909]
[1723865674141,0.7,2598.4,2597.9,6.29144]
[1723865674798,2.4148,2598.3,2597.6,3.84961]
[1723865674993,3.84896,2598.1,2597.6,3.84961]
[1723865675413,3.84912,2598.0,2597.5,2.4422]
[1723865675610,4.688928,2598.0,2597.5,6.29204]
[1723865676546,0.839808,2598.0,2597.5,6.29204]
[1723865677961,4.54896,2598.1,2597.6,3.8497]
[1723865678244,7.69752,2598.3,2597.8,3.8494]
[1723865678427,8.537272,2598.3,2597.8,3.8494]
[1723865678626,8.537272,2598.3,2597.7,2.4422]
[1723865678627,4.688502,2598.3,2597.7,6.29172]
[1723865678826,3.84884,2598.2,2597.7,6.29172]
[1723865680035,3.84884,2598.2,2597.7,2.4422]
[1723865681002,3.84884,2598.2,2597.7,6.29174]
[1723865681459,7.69779,2598.2,2597.7,2.4422]
[1723865681628,3.84898,2598.1,2597.7,2.4422]
[1723865683827,7.69802,2598.1,2597.7,2.4422]
[1723865684027,3.84898,2598.1,2597.7,2.4422]
[1723865685748,7.69803,2598.1,2597.7,2.4422]
[1723865686066,3.84898,2598.1,2597.7,2.4422]
[1723865690106,7.69803,2598.1,2597.7,2.4422]
[1723865690387,8.31146155,2598.1,2597.7,2.4422]
[1723865690591,4.46242155,2598.1,2597.7,2.4422]
[1723865693461,1.334,2597.8,2597.5,2.4582]
[1723865693666,5.18349,2597.8,2597.5,2.4582]
[1723865694253,5.18349,2597.8,2597.3,9.73051]
[1723865694497,3.84939,2597.9,2597.3,9.73051]
[1723865694498,1.334,2597.6,2597.3,9.73051]
[1723865694698,1.334,2597.6,2597.2,3.85019]
[1723865695984,7.69922,2597.7,2597.2,3.85019]
[1723865696189,3.84957,2597.7,2597.2,3.85019]
[1723865698471,3.84957,2597.7,2597.1,6.30864]
[1723865699479,6.14923,2597.6,2596.9,13.7085448]
[1723865699682,3.85001,2597.4,2596.9,13.7085448]
[1723865699871,4.55001,2597.4,2596.9,9.8578048]
[1723865700070,0.7,2597.4,2596.9,9.8578048]
[1723865700297,0.6604009,2597.7,2596.9,9.8578048]
[1723865700298,3.84927,2597.9,2597.1,2.4582]
[1723865700488,0.7,2598.0,2597.5,2.4582]
[1723865700489,4.54918,2598.0,2597.5,2.4582]
[1723865700672,3.84928,2597.9,2597.5,2.4582]
[1723865702420,3.84958,2597.7,2597.3,2.4582]
[1723865702580,3.84958,2597.7,2597.0,4.59045048]
[1723865702581,3.84975,2597.6,2597.1,2.4582]
[1723865703028,3.85002,2597.4,2597.1,2.4582]
[1723865703208,4.55002,2597.4,2596.9,7.3996048]
[1723865704027,3.85026,2597.3,2596.9,7.3996048]
[1723865704783,3.85033,2597.2,2596.9,7.3996048]
[1723865705885,7.70072,2597.2,2596.9,7.3996048]
[1723865706112,7.70073,2597.2,2596.9,7.3996048]
[1723865706301,7.70071,2597.2,2596.9,7.3996048]
[1723865706501,3.85033,2597.2,2596.9,7.3996048]
[1723865706699,7.70071,2597.2,2596.9,7.3996048]
[1723865708249,3.85033,2597.2,2596.9,7.3996048]
[1723865708383,7.70071,2597.2,2596.9,7.3996048]
[1723865708584,7.70071,2597.2,2596.9,0.1272948]
[1723865708810,3.85033,2597.2,2596.9,0.1272948]
[1723865709016,3.85046,2597.1,2596.9,0.1272948]
[1723865715321,3.85033,2597.2,2596.9,0.1272948]
[1723865715693,7.70075,2597.2,2596.9,0.1272948]
[1723865716245,3.85033,2597.2,2596.9,0.1272948]
[1723865716588,7.70071,2597.2,2596.9,0.1272948]
[1723865716817,7.70073,2597.2,2596.9,0.1272948]
[1723865717007,3.85033,2597.2,2596.9,0.1272948]
[1723865717530,7.70075,2597.2,2596.9,0.1272948]
[1723865717831,3.85033,2597.2,2596.9,0.1272948]
[1723865718218,3.85059,2597.0,2596.9,0.1272948]
[1723865718420,7.70077,2597.2,2596.9,0.1272948]
[1723865718608,7.70076,2597.2,2596.9,0.1272948]
[1723865718957,3.85047,2597.1,2596.9,0.1272948]
[1723865719885,3.85033,2597.2,2596.9,0.1272948]
[1723865720091,3.85022,2597.3,2596.9,0.1272948]
[1723865720436,3.85059,2597.0,2596.9,0.1272948]
[1723865723946,7.70118,2597.0,2596.9,0.1272948]
[1723865724451,9.03618,2597.0,2596.9,0.1272948]
[1723865727034,3.85059,2597.0,2596.9,0.1272948]
[1723865729834,5.18559,2597.0,2596.9,0.1272948]
[1723865730010,6.159193,2597.0,2596.9,0.1272948]
[1723865732243,6.26325472,2597.0,2596.9,0.1272948]
[1723865732581,0.10406172,2597.0,2596.9,2.4626948]
[1723865732804,1.335,2597.5,2597.0,6.1859]
[1723865732942,6.158308,2597.5,2597.0,6.1859]
[1723865733137,5.18487,2597.5,2597.0,2.3354]
[1723865734250,3.84935,2597.9,2597.1,2.3354]
[1723865734490,1.335,2597.8,2597.4,3.8499]
[1723865734782,1.335,2597.8,2597.5,2.3354]
[1723865741189,3.84882,2598.2,2597.6,3.84959]
[1723865741398,0.7,2598.5,2598.0,2.3354]
[1723865741399,4.54851,2598.5,2598.0,2.3354]
[1723865741599,1.335,2598.4,2598.0,6.18447]
[1723865741754,3.84875,2598.3,2598.0,2.3354]
[1723865742292,7.69752,2598.3,2598.0,2.3354]
[1723865742598,1.335,2598.2,2598.0,2.3354]
[1723865744856,1.335,2598.2,2597.8,2.3354]
[1723865745086,3.84875,2598.3,2597.8,2.3354]
[1723865745251,1.335,2598.2,2597.8,2.3354]
[1723865745882,0.09638677,2598.1,2597.8,2.3354]
[1723865746112,1.335,2598.0,2597.6,6.18502]
[1723865746390,0.09628936,2597.9,2597.6,6.18502]
[1723865747196,0.09628936,2597.9,2597.6,10.03464]
[1723865747369,0.09628936,2597.9,2597.6,11.038133]
[1723865747768,0.09628936,2597.9,2597.6,7.188513]
[1723865747961,0.09628936,2597.9,2597.6,11.038133]
[1723865748586,0.09628936,2597.9,2597.7,3.84954]
[1723865749162,0.09628936,2597.9,2597.7,4.90777363]
[1723865749368,0.09628936,2597.9,2597.8,2.4894]
[1723865750910,0.09628936,2597.9,2597.8,6.33881]
[1723865751269,1.335,2598.2,2597.8,6.33881]
[1723865751467,0.0962884,2597.9,2597.8,6.33881]
[1723865751702,1.335,2598.2,2597.8,7.342303]
[1723865751882,0.0962884,2597.9,2597.8,7.342303]
[1723865752285,1.335,2598.2,2597.8,7.342303]
[1723865752506,1.335,2598.2,2597.8,6.33881]
[1723865752818,0.0963858,2598.1,2597.8,6.33881]
[1723865752997,0.0963858,2598.1,2597.6,3.84969]
[1723865752998,1.335,2598.0,2597.6,3.84969]
[1723865753316,1.4313371,2598.0,2597.6,6.33909]
[1723865753716,1.4313371,2598.0,2597.7,3.84952]
[1723865757824,1.4313371,2598.0,2597.7,3.84947]
[1723865759024,1.4313371,2598.0,2597.6,2.4894]
[1723865759321,1.4313371,2598.0,2597.6,6.3391]
[1723865760284,1.4313371,2598.0,2597.6,7.357984]
[1723865761180,1.4313371,2598.0,2597.7,3.84951]
[1723865762280,0.0963371,2598.0,2597.8,2.4894]
[1723865762481,0.0963371,2598.0,2597.8,7.0745184]
[1723865762692,1.335,2598.2,2597.8,7.0745184]
[1723865762899,0.09633708,2597.9,2597.8,6.33872]
[1723865763093,1.335,2598.2,2597.8,6.33872]
[1723865763422,0.09643635,2598.1,2597.8,6.33872]
[1723865766011,0.09643635,2598.1,2597.9,3.92620969]
[1723865766334,1.335,2598.4,2598.0,6.33843]
[1723865766750,1.335,2598.4,2598.1,3.84896]
[1723865766920,1.335,2598.4,2598.1,7.69783]
[1723865767126,1.335,2598.4,2598.1,3.84887]
[1723865768164,1.335,2598.4,2598.0,2.4894]
[1723865768313,0.518338,2598.3,2597.7,11.12177]
[1723865768520,1.335,2598.0,2597.7,11.12177]
[1723865769433,1.335,2598.0,2597.7,7.27231]
[1723865769638,2.2858,2598.1,2597.1,12.17]
[1723865769639,3.84971,2597.6,2597.2,2.291]
[1723865769939,3.84971,2597.6,2596.9,7.3996048]
[1723865769940,5.18504,2597.4,2596.9,7.3996048]
[1723865770251,1.335,2597.2,2596.9,0.1272948]
[1723865771514,5.18535,2597.2,2596.9,0.1272948]
[1723865771710,1.335,2597.2,2596.9,0.1272948]
[1723865773547,4.54979,2597.6,2597.0,2.291]
[1723865773862,1.335,2597.5,2597.0,6.14157]
[1723865775064,1.335,2597.3,2596.9,0.1272948]
[1723865775899,0.09595745,2597.2,2596.9,0.1272948]
[1723865776223,5.18515,2597.3,2596.9,0.1272948]
[1723865776396,3.6208,2597.1,2596.9,0.1272948]
[1723865776706,0.09586278,2597.0,2596.9,0.1272948]
[1723865778277,4.368891,2597.2,2596.9,0.1272948]
[1723865778462,0.0959075,2597.0,2596.9,0.1272948]
[1723865778670,3.85038,2597.2,2596.9,0.1272948]
[1723865778999,4.919007,2597.2,2596.9,0.1272948]
[1723865779173,0.09593563,2597.1,2596.9,0.1272948]
[1723865779701,0.09593563,2597.1,2597.0,2.291]
[1723865779903,0.09593563,2597.1,2596.9,0.1272948]
[1723865780102,6.83598,2597.3,2596.9,0.1272948]
[1723865780413,3.85031,2597.2,2596.9,0.1272948]
[1723865780701,0.09588528,2597.1,2596.9,0.1272948]
[1723865786207,4.55019,2597.3,2596.9,0.1272948]
[1723865786403,0.09576902,2597.2,2596.9,0.1272948]
[1723865786605,6.13613,2597.2,2596.9,0.1272948]
[1723865786936,0.09572028,2597.1,2596.9,0.1272948]
[1723865788300,4.79581331,2597.1,2596.9,0.1272948]
[1723865788545,0.94536331,2597.1,2596.9,0.1272948]
[1723865789353,0.09572028,2597.1,2596.9,0.1272948]
[1723865791020,4.55019,2597.3,2596.9,0.1272948]
[1723865791348,0.09581334,2597.2,2596.9,0.1272948]
[1723865791719,4.55019,2597.3,2596.9,0.1272948]
[1723865792351,0.09576101,2597.2,2596.9,0.1272948]
[1723865792722,4.55019,2597.3,2596.9,0.1272948]
[1723865792926,0.09571227,2597.1,2596.9,0.1272948]
[1723865793240,3.8503,2597.2,2596.9,0.1272948]
[1723865793241,0.09566406,2597.0,2596.9,0.1272948]
[1723865793451,3.8503,2597.2,2596.9,0.1272948]
[1723865793754,0.0957128,2597.1,2596.9,0.1272948]
[1723865805738,0.0957128,2597.1,2597.0,6.11659]
[1723865805863,5.88485,2597.5,2597.0,2.89038848]
[1723865806065,1.335,2597.3,2596.9,0.1272948]
[1723865806302,5.18515,2597.3,2596.9,0.1272948]
[1723865806593,0.0925959,2597.2,2596.9,0.1272948]
[1723865806797,5.18515,2597.3,2596.9,0.1272948]
[1723865806959,0.0925959,2597.2,2596.9,0.1272948]
[1723865807154,5.18515,2597.3,2596.9,0.1272948]
[1723865807494,0.0925959,2597.2,2596.9,0.1272948]
[1723865807870,5.18515,2597.3,2596.9,0.1272948]
[1723865808070,0.09255372,2597.1,2596.9,0.1272948]
[1723865808277,5.18515,2597.3,2596.9,0.1272948]
[1723865808483,0.09250593,2597.0,2596.9,0.1272948]
[1723865808668,5.18515,2597.3,2596.9,0.1272948]
[1723865808866,0.09250593,2597.0,2596.9,0.1272948]
[1723865809525,5.18515,2597.3,2596.9,0.1272948]
[1723865809673,0.09250593,2597.0,2596.9,0.1272948]
[1723865809874,5.18515,2597.3,2596.9,0.1272948]
[1723865810075,0.09250593,2597.0,2596.9,0.1272948]
[1723865810310,5.18515,2597.3,2596.9,0.1272948]
[1723865810509,0.09250593,2597.0,2596.9,0.1272948]
[1723865810722,5.18515,2597.3,2596.9,0.1272948]
[1723865810915,0.09250686,2597.0,2596.9,0.1272948]
[1723865811212,0.09250686,2597.0,2596.9,4.60241028]
[1723865811389,4.54985,2597.5,2597.0,2.2768]
[1723865811576,5.88485,2597.5,2597.0,2.2768]
[1723865811778,0.09270177,2597.4,2597.0,2.2768]
[1723865812412,0.09270177,2597.4,2597.2,2.2768]
[1723865813908,3.94274177,2597.4,2596.9,2.4040948]
[1723865817625,3.94274177,2597.4,2596.9,6.2548248]
[1723865817831,3.94274177,2597.4,2597.0,0.62548248]
[1723865819228,3.94274177,2597.4,2596.9,6.2548248]
[1723865820049,0.09270177,2597.4,2596.9,2.4040948]
[1723865820331,0.09270177,2597.4,2597.1,2.2768]
[1723865820491,0.09270177,2597.4,2597.1,6.12717]
[1723865820696,3.84951,2597.8,2597.3,2.2768]
[1723865820901,5.18451,2597.8,2597.3,2.2768]
[1723865821654,3.84957,2597.7,2597.3,2.2768]
[1723865821849,3.84957,2597.7,2597.0,14.97331]
[1723865821850,3.84928,2597.9,2597.4,3.84998]
[1723865821997,1.335,2597.7,2597.4,0.770027]
[1723865822197,1.335,2597.7,2597.3,2.2768]
[1723865822839,1.335,2597.7,2597.2,3.85021]
[1723865823143,6.27672,2597.8,2597.1,2.2768]
[1723865823144,1.335,2597.5,2597.1,2.2768]
[1723865828046,7.70118,2597.0,2596.9,0.1272948]
[1723865828262,10.12848,2597.0,2596.9,0.1272948]
[1723865828919,13.97907,2597.0,2596.9,0.1272948]
[1723865829135,11.9707611,2597.0,2596.9,0.1272948]
[1723865829835,8.1201711,2597.0,2596.9,0.1272948]
[1723865830206,11.9707611,2597.0,2596.9,0.1272948]
[1723865832760,13.3057611,2597.0,2596.9,0.1272948]
[1723865835958,13.39629368,2597.0,2596.9,0.1272948]
[1723865838995,10.96899368,2597.0,2596.9,0.1272948]
[1723865841367,7.11840368,2597.0,2596.9,0.1272948]
[1723865841568,5.27612258,2597.0,2596.9,0.1272948]
[1723865843096,1.42553258,2597.0,2596.9,0.1272948]
[1723865844838,0.09053258,2597.0,2596.9,2.4799948]
[1723865845021,3.85054,2597.1,2596.9,0.1272948]
[1723865845344,1.42325167,2597.0,2596.9,0.1272948]
[1723865846002,5.27384167,2597.0,2596.9,0.1272948]
[1723865846618,9.12443167,2597.0,2596.9,0.1272948]
[1723865846819,10.19723014,2597.0,2596.9,0.1272948]
[1723865850601,0.08825167,2597.0,2596.9,2.5877948]
[1723865850808,1.335,2597.3,2596.9,2.5877948]
[1723865851043,0.08825968,2597.2,2596.9,6.4385248]
[1723865851238,1.335,2597.3,2596.9,6.4385248]
[1723865851239,1.335,2597.3,2597.1,2.4605]
[1723865851494,0.08825968,2597.2,2597.1,2.4605]
[1723865851787,1.335,2597.5,2597.1,2.4605]
[1723865851988,0.08829528,2597.2,2597.1,3.55380273]
[1723865852209,1.335,2597.5,2597.1,3.55380273]
[1723865852343,0.08829528,2597.2,2597.1,3.55380273]
[1723865852544,1.335,2597.5,2597.1,3.55380273]
[1723865852745,0.08829528,2597.2,2597.1,6.31094]
[1723865852991,5.18471,2597.6,2597.1,2.4605]
[1723865853287,0.08846391,2597.5,2597.2,0.631101]
[1723865858078,1.335,2597.4,2597.1,2.4605]
[1723865858247,0.08709517,2597.3,2597.1,2.4605]
[1723865864509,1.335,2597.5,2597.1,6.31092]
[1723865864659,1.335,2597.5,2597.2,3.85029]
[1723865865390,1.335,2597.5,2597.1,3.48937648]
[1723865866056,0.08541729,2597.4,2597.1,7.33969648]
[1723865866180,0.08541729,2597.4,2597.2,1.03285015]
[1723865867360,0.08541729,2597.4,2597.1,2.4605]
[1723865867565,1.335,2597.3,2596.9,2.5877948]
[1723865868103,0.08532824,2597.2,2596.9,2.5877948]
[1723865868471,1.335,2597.3,2596.9,2.5877948]
[1723865868715,0.08532824,2597.2,2596.9,2.5877948]
[1723865869213,1.335,2597.3,2596.9,2.5877948]
[1723865869382,0.08527951,2597.1,2596.9,2.5877948]
[1723865869722,0.08523077,2597.0,2596.9,6.4385248]
[1723865870094,1.335,2597.3,2596.9,6.4385248]
[1723865870290,0.08530951,2597.2,2596.9,2.5877948]
[1723865870506,5.18525,2597.3,2596.9,2.5877948]
[1723865870836,3.93561857,2597.2,2596.9,2.5877948]
[1723865872985,4.53268043,2597.2,2596.9,2.5877948]
[1723865873185,1.335,2597.1,2596.9,0.1272948]
[1723865873612,0.0852111,2597.0,2596.9,0.1272948]
[1723865877939,3.85031,2597.2,2596.9,0.1272948]
[1723865878459,0.08523924,2597.1,2597.0,2.384]
[1723865878771,5.1848,2597.6,2597.0,6.23459]
[1723865878918,0.08522144,2597.1,2597.0,6.48571948]
[1723865879122,5.1848,2597.6,2597.0,6.48571948]
[1723865879354,5.1848,2597.6,2597.2,2.384]
[1723865879559,0.08541823,2597.5,2597.2,2.384]
[1723865881461,0.08541823,2597.5,2597.4,3.85]
[1723865881623,2.80797536,2598.4,2597.4,3.85]
[1723865881624,0.7,2598.3,2597.8,3.84936]
[1723865881825,3.84859,2598.4,2597.9,2.384]
[1723865882039,0.0828079,2598.3,2597.9,6.23324]
[1723865882365,0.0828079,2598.3,2598.0,3.8491]
[1723865882721,0.0828079,2598.3,2597.9,6.856504]
[1723865885123,1.335,2598.4,2597.9,6.856504]
[1723865885469,0.08008668,2598.2,2597.9,6.856504]
[1723865885627,0.08013537,2598.3,2597.9,6.856504]
[1723865885823,0.08013537,2598.3,2598.0,0.6856504]
[1723865887225,1.335,2598.2,2597.9,3.007324]
[1723865887577,0.07994452,2598.1,2597.9,2.384]
[1723865890777,0.07994452,2598.1,2597.7,9.99713]
[1723865891085,0.07994452,2598.1,2597.8,0.384947]
[1723865891787,1.335,2598.0,2597.7,2.2982]
[1723865892281,0.07993069,2597.9,2597.7,2.2982]
[1723865893555,1.335,2598.0,2597.7,2.2982]
[1723865893750,5.18385,2598.2,2597.8,0.614789]
[1723865894053,7.47685,2598.2,2597.6,3.84969]
[1723865894651,11.32578,2598.2,2597.6,3.84969]
[1723865894851,7.47685,2598.2,2597.6,3.84969]
[1723865895052,11.32577,2598.2,2597.6,3.84969]
[1723865895288,7.47685,2598.2,2597.6,3.84969]
[1723865895458,1.335,2598.2,2597.8,3.84932]
[1723865895661,1.335,2598.2,2597.9,0.384932]
[1723865895964,0.07729548,2598.1,2597.8,3.84932]
[1723865896585,0.07729548,2598.1,2597.8,3.84931]
[1723865896775,5.18361,2598.4,2597.9,2.2982]
[1723865896978,0.07720577,2598.0,2597.9,2.912951]
[1723865897186,5.18361,2598.4,2597.9,6.762131]
[1723865897352,0.07720577,2598.0,2597.9,6.762131]
[1723865897557,5.18361,2598.4,2597.9,6.762131]
[1723865897758,0.07720577,2598.0,2597.9,6.762131]
[1723865897993,4.54831,2598.6,2598.1,3.84893]
[1723865897994,0.7,2598.6,2598.1,3.84893]
[1723865898257,0.7,2598.6,2598.2,3.84881]
[1723865898966,0.7,2598.6,2598.3,2.2982]
[1723865899682,9.03098,2598.8,2598.3,2.2982]
[1723865899897,1.335,2598.6,2598.3,2.2982]
[1723865901811,5.18297,2598.8,2598.3,2.92058866]
[1723865902903,1.335,2598.8,2598.4,3.8485]
[1723865903270,0.7,2599.2,2598.3,2.92058866]
[1723865903271,4.54739,2599.2,2598.3,2.92058866]
[1723865903477,6.1401,2599.4,2598.7,6.14616]
[1723865903716,3.8471,2599.4,2598.8,3.84779]
[1723865904013,1.335,2599.3,2598.8,3.84779]
[1723865905117,5.18219,2599.3,2598.7,6.14616]
[1723865905320,5.18219,2599.3,2598.7,7.488007]
[1723865905524,1.335,2599.1,2598.7,6.14616]
[1723865906580,1.335,2599.1,2598.7,9.99415]
[1723865907118,1.335,2599.1,2598.7,6.14616]
[1723865910278,1.335,2599.1,2598.7,9.99415]
[1723865910923,0.07576803,2599.0,2598.7,9.99415]
[1723865911153,0.07576803,2599.0,2598.8,3.84791]
[1723865911510,5.1822,2599.3,2598.7,6.14616]
[1723865911684,0.07586533,2599.2,2598.8,0.614616]
[1723865911883,5.1822,2599.3,2598.7,9.99413]
[1723865912234,0.07586533,2599.2,2598.7,9.99414]
[1723865912892,0.07586533,2599.2,2598.7,6.14616]
[1723865913104,0.07586533,2599.2,2598.7,9.99415]
[1723865913414,0.07586533,2599.2,2598.7,6.14616]
[1723865913618,2.37116533,2599.2,2598.7,6.14616]
[1723865916018,2.37116533,2599.2,2598.7,9.99415]
[1723865916211,2.37116533,2599.2,2598.7,6.14616]
[1723865916650,0.07586533,2599.2,2598.7,6.14616]
[1723865916813,0.07586533,2599.2,2598.7,9.99415]
[1723865917224,0.07586533,2599.2,2598.7,6.14616]
[1723865917816,0.07586533,2599.2,2598.7,9.99415]
[1723865918345,0.07586533,2599.2,2598.7,6.14616]
[1723865919025,0.07586533,2599.2,2598.7,9.99415]
[1723865919362,0.07586533,2599.2,2598.7,6.14616]
[1723865922257,0.07586533,2599.2,2598.7,9.99415]
[1723865923250,0.07586533,2599.2,2598.8,3.84792]
[1723865923436,5.1822,2599.3,2598.8,3.84792]
[1723865923637,0.07523962,2599.1,2598.8,3.84792]
[1723865923833,5.1822,2599.3,2598.8,3.84792]
[1723865924474,0.07528827,2599.2,2598.8,3.84792]
[1723865924959,0.07523962,2599.1,2598.8,3.84792]
[1723865925271,5.1822,2599.3,2598.8,3.84792]
[1723865925571,5.1822,2599.3,2598.8,4.462532]
[1723865925721,5.1822,2599.3,2598.8,3.84792]
[1723865925921,0.07528827,2599.2,2598.8,3.84792]
[1723865926306,5.1822,2599.3,2598.8,3.84792]
[1723865926613,0.07528827,2599.2,2598.8,3.84792]
[1723865926778,5.1822,2599.3,2598.8,3.84792]
[1723865926981,0.07523962,2599.1,2598.8,3.84792]
[1723865927168,5.1822,2599.3,2598.8,4.847352]
[1723865927365,0.07519477,2599.0,2598.8,4.847352]
[1723865927614,5.1822,2599.3,2598.8,4.847352]
[1723865927906,0.07514612,2598.9,2598.8,3.84792]
[1723865928069,5.1822,2599.3,2598.8,3.84792]
[1723865928260,0.07514612,2598.9,2598.8,3.84792]
[1723865928464,5.1822,2599.3,2598.8,3.84792]
[1723865928663,0.07514612,2598.9,2598.8,3.84792]
[1723865928879,5.1822,2599.3,2598.8,4.847352]
[1723865929096,0.07514612,2598.9,2598.8,3.84792]
[1723865929278,5.1822,2599.3,2598.8,3.84792]
[1723865929502,0.07514612,2598.9,2598.8,3.84792]
[1723865929661,5.1822,2599.3,2598.8,3.84792]
[1723865929867,0.07514612,2598.9,2598.8,3.84792]
[1723865930110,5.1822,2599.3,2598.8,3.84792]
[1723865930589,0.07495466,2599.2,2598.8,3.84792]
[1723865930766,5.1822,2599.3,2598.8,3.84792]
[1723865930966,0.07495466,2599.2,2598.8,3.84792]
[1723865931206,5.1822,2599.3,2598.8,3.84792]
[1723865931366,0.074906,2599.1,2598.8,3.84792]
[1723865931766,5.1822,2599.3,2598.8,3.84792]
[1723865931989,0.07527066,2599.2,2598.8,3.84792]
[1723865932205,6.38466,2599.3,2598.8,3.84792]
[1723865932376,0.07522202,2599.1,2598.8,3.84792]
[1723865932566,6.38466,2599.3,2598.8,3.84792]
[1723865932768,0.07527066,2599.2,2598.8,3.84792]
[1723865932969,5.1822,2599.3,2598.8,3.84792]
[1723865933287,0.07527066,2599.2,2598.8,3.84792]
[1723865933690,5.1822,2599.3,2598.8,3.84792]
[1723865933920,0.07522202,2599.1,2598.8,3.84792]
[1723865934235,0.07517336,2599.0,2598.7,2.2982]
[1723865934427,3.84735,2599.2,2598.7,2.2982]
[1723865934652,0.07513038,2598.9,2598.7,2.2982]
[1723865934857,3.84735,2599.2,2598.7,2.2982]
[1723865935005,0.07508172,2598.8,2598.7,2.2982]
[1723865935206,3.84735,2599.2,2598.7,2.2982]
[1723865935407,0.07508172,2598.8,2598.7,2.2982]
[1723865935702,7.69478,2599.2,2598.7,2.2982]
[1723865936037,3.84735,2599.2,2598.7,2.2982]
[1723865936252,0.07522769,2599.1,2598.7,2.2982]
[1723865936551,0.07522769,2599.1,2598.6,3.84808]
[1723865936908,0.07522769,2599.1,2598.6,7.69622]
[1723865938647,2.49632769,2599.1,2598.6,7.69622]
[1723865938962,2.49632769,2599.1,2598.6,3.84808]
[1723865939721,3.84772,2599.0,2598.5,2.3129]
[1723865939927,0.07510141,2598.9,2598.5,2.3129]
[1723865940234,0.07510141,2598.9,2598.5,6.16127]
[1723865943584,0.07510141,2598.9,2598.6,3.84814]
[1723865943932,2.4211,2599.3,2598.8,3.8479]
[1723865944262,3.84713,2599.4,2598.8,3.84785]
[1723865944263,3.84711,2599.4,2598.8,3.84785]
[1723865944577,7.69424,2599.4,2598.8,3.84784]
[1723865944773,3.84719,2599.3,2598.8,3.84784]
[1723865947388,3.84719,2599.3,2598.8,5.29346263]
[1723865949586,6.14131,2599.2,2598.6,11.12043]